fUST/lending_fUST_20250812
["ID","MTS","AMOUNT","RATE_DAILY","PERIOD"]
[378703083,1754964877576,460.0,0.0001875,2]
[378703084,1754964881588,183.08066507,0.0001875,2]
[378703085,1754964883477,460.0,0.0001875,2]
[378703086,1754964883897,2229.85,0.0001875,2]
[378703087,1754964884686,1060.82,0.0001875,2]
[378703089,1754964891972,460.0,0.0001875,2]
[378703090,1754964892806,696.98,0.0001875,2]
[378703091,1754964893117,340.733054,0.00013699,2]
[378703092,1754964894718,460.0,0.0001875,2]
[378703093,1754964897319,735.24,0.0001875,2]
[378703094,1754964901702,460.0,0.0001875,2]
[378703095,1754964902347,300.0,0.0001875,2]
[378703096,1754964908673,792.57,0.0001875,2]
[378703097,1754964915287,467.07,0.0001875,2]
[378703098,1754964917018,863.39,0.0001875,2]
[378703099,1754964918272,1672.72,0.0001875,2]
[378703100,1754964918893,209.22495505,0.0001875,2]
[378703101,1754964919682,469.2940804,0.0001875,2]
[378703102,1754964922758,460.0,0.0001875,2]
[378703103,1754964924514,460.0,0.0001875,2]
[378703104,1754964928519,510.61,0.0001875,2]
[378703105,1754964934063,876.32,0.0001875,2]
[378703106,1754964937667,462.33096789,0.0001875,2]
[378703107,1754964940600,460.0,0.0001875,2]
[378703108,1754964942714,460.0,0.0001875,2]
[378703109,1754964949396,460.0,0.0001875,2]
[378703110,1754964950460,460.0,0.0001875,2]
[378703111,1754964955034,462.8883494,0.0001875,2]
[378703112,1754964956410,2136.94,0.0001875,2]
[378703113,1754964963077,300.0,0.0001875,2]
[378703114,1754964964595,1366.54,0.0001875,2]
[378703115,1754964969489,2689.24,0.0001875,2]
[378703116,1754964972026,460.0,0.0001875,2]
[378703117,1754964979591,712.55,0.0001875,2]
[378703118,1754964985488,460.0,0.0001875,2]
[378703119,1754964991694,561.15,0.0001875,2]
[378703120,1754964994937,1212.31,0.0001875,2]
[378703121,1754964996544,460.0,0.0001875,2]
[378703122,1754964997393,460.0,0.0001875,2]
[378703123,1754964999114,460.0,0.0001875,2]
[378703124,1754965002227,522.31078103,0.0001875,2]
[378703125,1754965004000,463.32,0.0001875,2]
[378703126,1754965005128,766.66,0.0001875,2]
[378703127,1754965007380,460.0,0.0001875,2]
[378703128,1754965013179,1138.13,0.0001875,2]
[378703129,1754965015333,473.75536964,0.00018651,2]
[378703130,1754965017052,522.09,0.0001875,2]
[378703131,1754965021798,460.0,0.0001875,2]
[378703132,1754965022945,300.0,0.0001875,2]
[378703133,1754965023549,2559.77,0.0001875,2]
[378703134,1754965025959,460.0,0.0001875,2]
[378703135,1754965034678,1821.53,0.0001875,2]
[378703136,1754965037413,523.67,0.0001875,2]
[378703137,1754965037626,596.67,0.0001875,2]
[378703138,1754965048323,626.94,0.0001875,2]
[378703139,1754965049170,460.0,0.0001875,2]
[378703140,1754965050747,460.0,0.0001875,2]
[378703141,1754965050999,362.67610366,0.0001875,2]
[378703142,1754965053598,460.0,0.0001875,2]
[378703143,1754965055305,460.0,0.0001875,2]
[378703144,1754965057129,460.0,0.0001875,2]
[378703145,1754965062030,1153.85,0.0001875,2]
[378703146,1754965064381,460.0,0.0001875,2]
[378703147,1754965068772,1161.79,0.0001875,2]
[378703148,1754965081189,460.0,0.0001875,2]
[378703149,1754965082889,300.0,0.0001875,2]
[378703150,1754965086460,460.0,0.0001875,2]
[378703151,1754965093845,778.18,0.0001875,2]
[378703152,1754965104937,1060.83,0.0001875,2]
[378703153,1754965107828,460.0,0.0001875,2]
[378703154,1754965113500,460.0,0.0001875,2]
[378703155,1754965115489,460.0,0.0001875,2]
[378703156,1754965118939,600.82,0.0001875,2]
[378703157,1754965123230,3345.9,0.0001875,2]
[378703158,1754965131084,1111.85,0.0001875,2]
[378703159,1754965131609,687.99,0.0001875,2]
[378703160,1754965135135,460.0,0.0001875,2]
[378703161,1754965137845,4150.15,0.0001875,2]
[378703162,1754965139662,460.0,0.0001875,2]
[378703163,1754965141799,851.59,0.0001875,2]
[378703164,1754965142425,300.0,0.0001875,2]
[378703165,1754965142508,689.16,0.0001875,2]
[378703166,1754965149429,500.0,0.0001875,2]
[378703167,1754965150036,500.0,0.0001875,2]
[378703168,1754965151086,500.0,0.0001875,2]
[378703169,1754965155786,2788.94,0.0001875,2]
[378703170,1754965160159,522.47,0.0001875,2]
[378703171,1754965160512,208.9802576,0.0001875,2]
[378703172,1754965160545,460.0,0.0001875,2]
[378703173,1754965163349,460.0,0.0001875,2]
[378703174,1754965169589,1122.52,0.0001875,2]
[378703175,1754965179825,804.21367787,0.00017994,2]
[378703176,1754965181531,460.0,0.0001875,2]
[378703177,1754965182010,3213.63785678,0.00017994,2]
[378703178,1754965186676,460.0,0.0001875,2]
[378703179,1754965189441,3977.23,0.0001875,2]
[378703180,1754965194384,461.0011021,0.0001875,2]
[378703181,1754965194693,765.18,0.0001875,2]
[378703182,1754965194858,541.19,0.0001875,2]
[378703183,1754965197185,460.0,0.0001875,2]
[378703184,1754965198356,166.59907724,0.00017994,2]
[378703185,1754965198691,183.72360835,0.0001875,2]
[378703186,1754965200554,665.72991266,0.00017994,2]
[378703187,1754965202380,300.0,0.0001875,2]
[378703188,1754965205011,1059.81,0.0001875,2]
[378703189,1754965213168,500.0,0.0001875,2]
[378703190,1754965213256,946.63,0.0001875,2]
[378703191,1754965213906,500.0,0.0001875,2]
[378703193,1754965214702,500.0,0.0001875,2]
[378703196,1754965214915,460.0,0.0001875,2]
[378703197,1754965215156,500.0,0.0001875,2]
[378703198,1754965215675,500.0,0.0001875,2]
[378703199,1754965216044,1290.11,0.0001875,2]
[378703200,1754965216354,609.44,0.0001875,2]
[378703201,1754965218297,163.0,0.0003013,120]
[378703202,1754965221482,460.0,0.0001875,2]
[378703203,1754965221697,3811.51,0.0001875,2]
[378703204,1754965224245,460.0,0.0001875,2]
[378703205,1754965232812,460.0,0.0001875,2]
[378703206,1754965232997,460.0,0.0001875,2]
[378703207,1754965239917,460.0,0.0001875,2]
[378703208,1754965240851,465.98,0.0001875,2]
[378703209,1754965240960,460.0,0.0001875,2]
[378703210,1754965244392,460.0,0.0001875,2]
[378703211,1754965246027,460.0,0.0001875,2]
[378703212,1754965246060,460.0,0.0001875,2]
[378703213,1754965249047,500.67560218,0.0001875,2]
[378703214,1754965250269,500.33,0.0001875,2]
[378703215,1754965251505,460.0,0.0001875,2]
[378703216,1754965252924,1091.02,0.0001875,2]
[378703217,1754965256188,892.36,0.0001875,2]
[378703218,1754965259467,460.0,0.0001875,2]
[378703219,1754965263021,300.0,0.0001875,2]
[378703220,1754965263186,2848.42,0.0001875,2]
[378703221,1754965266089,460.0,0.0001875,2]
[378703222,1754965266891,1745.64,0.0001875,2]
[378703223,1754965267576,1283.54,0.0001875,2]
[378703224,1754965269001,584.05,0.0001875,2]
[378703225,1754965269101,460.0,0.0001875,2]
[378703226,1754965269351,460.0,0.0001875,2]
[378703227,1754965271935,1535.05,0.0001875,2]
[378703228,1754965272112,460.0,0.0001875,2]
[378703229,1754965272938,460.0,0.0001875,2]
[378703230,1754965274768,460.0,0.0001875,2]
[378703231,1754965276364,460.0,0.0001875,2]
[378703232,1754965276549,1177.83,0.0001875,2]
[378703233,1754965279460,460.0,0.0001875,2]
[378703234,1754965280920,460.0,0.0001875,2]
[378703236,1754965288391,460.0,0.0001875,2]
[378703237,1754965290512,1136.26013195,0.000187,3]
[378703238,1754965291298,505.20323591,0.0001875,2]
[378703239,1754965292252,552.58,0.0001875,2]
[378703240,1754965292433,1030.86,0.0001875,2]
[378703241,1754965294568,523.58,0.0001875,2]
[378703242,1754965295892,414.53594847,0.00018651,2]
[378703243,1754965299241,559.72,0.0001875,2]
[378703244,1754965306821,507.36,0.0001875,2]
[378703245,1754965309424,460.0,0.0001875,2]
[378703246,1754965315160,2729.74,0.0001875,2]
[378703247,1754965317132,783.32,0.0001875,2]
[378703248,1754965321057,161.58167914,0.0001875,2]
[378703249,1754965322312,300.0,0.0001875,2]
[378703253,1754965326046,248.40118672,0.0001875,2]
[378703254,1754965326295,745.01,0.0001875,2]
[378703255,1754965327402,552.25,0.0001875,2]
[378703256,1754965334130,578.00232696,0.0001875,2]
[378703257,1754965334606,460.0,0.0001875,2]
[378703258,1754965335598,736.86,0.0001875,2]
[378703259,1754965336749,1016.63,0.0001875,2]
[378703260,1754965337989,460.0,0.0001875,2]
[378703261,1754965341508,444.24391484,0.0001875,2]
[378703262,1754965344155,475.34,0.0001875,2]
[378703263,1754965344650,460.0,0.0001875,2]
[378703264,1754965344853,462.91364482,0.0001875,2]
[378703265,1754965345706,460.0,0.0001875,2]
[378703266,1754965345991,2616.0,0.0001875,2]
[378703267,1754965346031,460.0,0.0001875,2]
[378703268,1754965346456,501.76,0.0001875,2]
[378703269,1754965346852,735.33,0.0001875,2]
[378703271,1754965351423,480.32,0.0001875,2]
[378703272,1754965351627,460.0,0.0001875,2]
[378703273,1754965354302,3206.49,0.0001875,2]
[378703274,1754965355231,460.0,0.0001875,2]
[378703275,1754965355498,463.3326597,0.0001875,2]
[378703276,1754965355629,460.0,0.0001875,2]
[378703277,1754965355832,460.0,0.0001875,2]
[378703278,1754965357168,460.0,0.0001875,2]
[378703279,1754965359014,460.0,0.0001875,2]
[378703280,1754965360125,460.0,0.0001875,2]
[378703281,1754965362873,474.5881647,0.0001875,2]
[378703282,1754965364776,460.0,0.0001875,2]
[378703283,1754965364849,817.08,0.0001875,2]
[378703284,1754965369465,462.92043854,0.0001875,2]
[378703285,1754965370267,564.22,0.0001875,2]
[378703286,1754965371404,460.0,0.0001875,2]
[378703288,1754965372537,460.0,0.0001875,2]
[378703289,1754965372871,460.0,0.0001875,2]
[378703290,1754965374229,660.45,0.0001875,2]
[378703291,1754965375564,460.0,0.0001875,2]
[378703292,1754965377683,460.0,0.0001875,2]
[378703293,1754965378377,460.0,0.0001875,2]
[378703294,1754965378451,888.11,0.0001875,2]
[378703295,1754965382873,460.0,0.0001875,2]
[378703296,1754965382935,300.0,0.0001875,2]
[378703297,1754965383100,460.0,0.0001875,2]
[378703298,1754965383361,460.0,0.0001875,2]
[378703299,1754965386699,705.57,0.0001875,2]
[378703300,1754965387600,2672.73,0.0001875,2]
[378703301,1754965387884,1016.62,0.0001875,2]
[378703302,1754965396329,667.93,0.0001875,2]
[378703303,1754965396702,460.0,0.0001875,2]
[378703304,1754965401688,1075.75,0.0001875,2]
[378703305,1754965403297,460.0,0.0001875,2]
[378703306,1754965404052,539.38,0.0001875,2]
[378703307,1754965404244,616.33,0.0001875,2]
[378703308,1754965409324,704.61,0.0001875,2]
[378703309,1754965410714,462.96517892,0.0001875,2]
[378703310,1754965412239,605.21,0.0001875,2]
[378703311,1754965413376,460.0,0.0001875,2]
[378703312,1754965415705,460.0,0.0001875,2]
[378703313,1754965420104,460.0,0.0001875,2]
[378703314,1754965421106,1603.02,0.0001875,2]
[378703315,1754965421261,460.0,0.0001875,2]
[378703316,1754965423334,460.0,0.0001875,2]
[378703317,1754965426049,489.23,0.0001875,2]
[378703318,1754965426089,502.64,0.0001875,2]
[378703319,1754965426798,460.0,0.0001875,2]
[378703320,1754965426828,733.29,0.0001875,2]
[378703321,1754965432892,460.0,0.0001875,2]
[378703322,1754965434880,809.42,0.0001875,2]
[378703323,1754965434940,10258.09,0.0001875,2]
[378703324,1754965435645,460.0,0.0001875,2]
[378703325,1754965436931,839.81,0.0001875,2]
[378703326,1754965438247,1912.42,0.0001875,2]
[378703327,1754965440948,460.0,0.0001875,2]
[378703328,1754965441350,460.0,0.0001875,2]
[378703332,1754965442907,300.0,0.0001875,2]
[378703333,1754965444362,460.0,0.0001875,2]
[378703334,1754965446443,907.19,0.0001875,2]
[378703335,1754965448577,460.0,0.0001875,2]
[378703336,1754965452740,1551.81,0.0001875,2]
[378703337,1754965452879,460.0,0.0001875,2]
[378703338,1754965454634,460.0,0.0001875,2]
[378703339,1754965455793,499.25,0.0001875,2]
[378703340,1754965460213,460.0,0.0001875,2]
[378703341,1754965467634,2047.9,0.0001875,2]
[378703342,1754965468783,479.48,0.0001875,2]
[378703343,1754965469083,675.25,0.0001875,2]
[378703344,1754965472378,2577.18,0.0001875,2]
[378703345,1754965474661,460.0,0.0001875,2]
[378703346,1754965479009,460.0,0.0001875,2]
[378703347,1754965479247,460.0,0.0001875,2]
[378703348,1754965479599,460.0,0.0001875,2]
[378703349,1754965481755,460.0,0.0001875,2]
[378703350,1754965482434,682.86,0.0001875,2]
[378703351,1754965485503,1045.56,0.0001875,2]
[378703352,1754965485883,1672.9,0.0001875,2]
[378703353,1754965486054,759.54,0.0001875,2]
[378703354,1754965486904,460.0,0.0001875,2]
[378703355,1754965489862,460.0,0.0001875,2]
[378703356,1754965492900,2599.98,0.0001875,2]
[378703357,1754965493411,647.11,0.0001875,2]
[378703358,1754965495226,460.0,0.0001875,2]
[378703359,1754965496836,289.11560234,0.0001875,2]
[378703360,1754965497228,460.0,0.0001875,2]
[378703361,1754965499582,1230.06,0.0001875,2]
[378703362,1754965500012,460.0,0.0001875,2]
[378703363,1754965500563,460.0,0.0001875,2]
[378703364,1754965501515,9830.67,0.0001875,2]
[378703365,1754965502795,300.0,0.0001875,2]
[378703366,1754965502937,460.0,0.0001875,2]
[378703367,1754965503277,264.19693877,0.0001875,2]
[378703368,1754965504732,460.0,0.0001875,2]
[378703369,1754965507753,1471.08,0.0001875,2]
[378703370,1754965509645,734.71,0.0001875,2]
[378703371,1754965510382,501.73435738,0.00017993,2]
[378703372,1754965512742,2004.93049211,0.00017993,2]
[378703373,1754965519280,827.42,0.0001875,2]
[378703374,1754965525333,1962.57,0.0001875,2]
[378703375,1754965527261,460.0,0.0001875,2]
[378703376,1754965527392,2453.11,0.0001875,2]
[378703377,1754965529732,489.34,0.0001875,2]
[378703378,1754965533809,460.0,0.0001875,2]
[378703379,1754965541513,460.0,0.0001875,2]
[378703380,1754965541721,460.0,0.0001875,2]
[378703381,1754965543835,464.94801502,0.0001875,2]
[378703382,1754965548103,466.23473611,0.0001875,2]
[378703383,1754965549338,460.0,0.0001875,2]
[378703384,1754965549773,460.0,0.0001875,2]
[378703385,1754965550132,465.26447533,0.0001875,2]
[378703386,1754965551885,974.27,0.0001875,2]
[378703387,1754965555081,3201.5,0.0001875,2]
[378703388,1754965557862,460.0,0.0001875,2]
[378703389,1754965560350,460.0,0.0001875,2]
[378703390,1754965560895,1113.38,0.0001875,2]
[378703391,1754965560987,460.0,0.0001875,2]
[378703393,1754965562385,2491.65,0.0001875,2]
[378703394,1754965562556,300.0,0.0001875,2]
[378703396,1754965563495,460.0,0.0001875,2]
[378703397,1754965564139,1309.6,0.0001875,2]
[378703398,1754965564178,713.97,0.0001875,2]
[378703399,1754965565621,460.0,0.0001875,2]
[378703400,1754965567103,460.0,0.0001875,2]
[378703401,1754965567645,1105.78,0.0001875,2]
[378703402,1754965569068,460.0,0.0001875,2]
[378703404,1754965570127,3072.89,0.0001875,2]
[378703405,1754965572091,706.16,0.0001875,2]
[378703406,1754965574992,460.0,0.0001875,2]
[378703407,1754965576124,362.71895492,0.00018651,2]
[378703408,1754965582219,460.0,0.0001875,2]
[378703409,1754965587452,632.93,0.0001875,2]
[378703410,1754965589966,537.77,0.0001875,2]
[378703411,1754965593797,460.0,0.0001875,2]
[378703412,1754965595492,460.0,0.0001875,2]
[378703413,1754965601874,2561.37,0.0001875,2]
[378703414,1754965602157,783.04,0.0001875,2]
[378703415,1754965602924,460.0,0.0001875,2]
[378703416,1754965604095,460.0,0.0001875,2]
[378703417,1754965604842,472.0202521,0.0001875,2]
[378703419,1754965610601,575.78,0.0001875,2]
[378703420,1754965610632,460.0,0.0001875,2]
[378703421,1754965610824,1090.71,0.0001875,2]
[378703422,1754965613419,460.0,0.0001875,2]
[378703423,1754965613488,1066.99,0.0001875,2]
[378703424,1754965613722,460.0,0.0001875,2]
[378703425,1754965615824,1030.93,0.0001875,2]
[378703428,1754965621737,466.49482564,0.0001875,2]
[378703429,1754965623381,300.0,0.0001875,2]
[378703430,1754965624195,24900.0,0.00018021,2]
[378703431,1754965624748,974.26,0.0001875,2]
[378703432,1754965627315,460.0,0.0001875,2]
[378703433,1754965627568,3068.1,0.0001875,2]
[378703434,1754965629044,464.02343351,0.0001875,2]
[378703435,1754965632374,978.07,0.0001875,2]
[378703436,1754965632827,640.1,0.0001875,2]
[378703437,1754965633645,460.0,0.0001875,2]
[378703438,1754965638129,-463.84587168,0.00018751,2]
[378703439,1754965638150,-409.8522063,0.00018751,2]
[378703440,1754965638171,-350.78424961,0.00018751,2]
[378703441,1754965640822,702.74,0.0001875,2]
[378703442,1754965648390,460.0,0.0001875,2]
[378703443,1754965650789,1832.74,0.0001875,2]
[378703444,1754965657290,460.0,0.0001875,2]
[378703445,1754965657856,1536.23,0.0001875,2]
[378703446,1754965658796,869.39,0.0001875,2]
[378703447,1754965660686,460.0,0.0001875,2]
[378703448,1754965663591,460.0,0.0001875,2]
[378703449,1754965664203,551.79,0.0001875,2]
[378703450,1754965668255,460.0,0.0001875,2]
[378703451,1754965673073,804.81,0.0001875,2]
[378703452,1754965674119,460.0,0.0001875,2]
[378703453,1754965677905,460.0,0.0001875,2]
[378703455,1754965682437,460.0,0.0001875,2]
[378703457,1754965683472,300.0,0.0001875,2]
[378703458,1754965684182,460.0,0.0001875,2]
[378703459,1754965684532,528.8,0.0001875,2]
[378703460,1754965684803,460.0,0.0001875,2]
[378703461,1754965688983,745.75,0.0001875,2]
[378703462,1754965689810,460.0,0.0001875,2]
[378703463,1754965691580,471.5290011,0.0001875,2]
[378703464,1754965692431,460.0,0.0001875,2]
[378703465,1754965699303,1002.0,0.0001875,2]
[378703466,1754965699800,598.87071475,0.0001875,2]
[378703467,1754965703981,2045.73,0.0001875,2]
[378703468,1754965706953,460.0,0.0001875,2]
[378703469,1754965707758,659.33,0.0001875,2]
[378703470,1754965708456,2469.8,0.0001875,2]
[378703471,1754965709600,462.41749444,0.0001875,2]
[378703472,1754965710458,460.0,0.0001875,2]
[378703473,1754965713859,1178.81,0.0001875,2]
[378703475,1754965716562,460.0,0.0001875,2]
[378703476,1754965718394,654.41,0.0001875,2]
[378703477,1754965719542,463.68932108,0.0001875,2]
[378703478,1754965721481,460.0,0.0001875,2]
[378703479,1754965721839,1409.79,0.0001875,2]
[378703480,1754965725293,1065.53,0.0001875,2]
[378703481,1754965726989,776.49,0.0001875,2]
[378703483,1754965727480,1815.78,0.0001875,2]
[378703488,1754965729150,460.0,0.0001875,2]
[378703489,1754965731311,460.0,0.0001875,2]
[378703490,1754965736184,816.11,0.0001875,2]
[378703491,1754965737985,460.0,0.0001875,2]
[378703492,1754965738014,179.95782059,0.0001875,2]
[378703493,1754965738420,460.0,0.0001875,2]
[378703494,1754965742539,300.0,0.0001875,2]
[378703498,1754965744530,460.0,0.0001875,2]
[378703499,1754965744724,704.1,0.0001875,2]
[378703500,1754965748794,460.0,0.0001875,2]
[378703501,1754965752093,500.7,0.0001875,2]
[378703502,1754965755642,1603.2,0.0001875,2]
[378703503,1754965758437,500.0,0.0001875,2]
[378703504,1754965759753,595.54,0.0001875,2]
[378703505,1754965759808,500.0,0.0001875,2]
[378703506,1754965760450,500.0,0.0001875,2]
[378703507,1754965761643,460.0,0.0001875,2]
[378703508,1754965762852,2350.9,0.0001875,2]
[378703509,1754965763085,1142.73,0.0001875,2]
[378703510,1754965766888,460.0,0.0001875,2]
[378703511,1754965767518,518.64,0.0001875,2]
[378703513,1754965769088,361.41860233,0.0001875,2]
[378703514,1754965775613,460.0,0.0001875,2]
[378703515,1754965777340,500.0,0.0001875,2]
[378703516,1754965777804,500.0,0.0001875,2]
[378703517,1754965777926,684.22,0.0001875,2]
[378703518,1754965781094,1960.5,0.0001875,2]
[378703519,1754965782165,152.0,0.00023,30]
[378703520,1754965783455,2197.0177295,0.00018166,2]
[378703521,1754965786806,676.74,0.0001875,2]
[378703522,1754965787796,460.0,0.0001875,2]
[378703523,1754965788537,3652.7,0.0001875,2]
[378703524,1754965795324,460.0,0.0001875,2]
[378703525,1754965796417,460.0,0.0001875,2]
[378703526,1754965801588,1059.7,0.0001875,2]
[378703527,1754965802808,300.0,0.0001875,2]
[378703531,1754965804937,1740.12,0.0001875,2]
[378703532,1754965806587,1236.36,0.0001875,2]
[378703533,1754965808009,460.0,0.0001875,2]
[378703534,1754965810951,460.0,0.0001875,2]
[378703535,1754965812398,214.49722642,0.0001875,2]
[378703536,1754965812682,460.0,0.0001875,2]
[378703537,1754965813620,462.11758604,0.0001875,2]
[378703538,1754965813969,750.41,0.0001875,2]
[378703539,1754965815175,460.0,0.0001875,2]
[378703540,1754965815932,460.0,0.0001875,2]
[378703541,1754965818552,460.0,0.0001875,2]
[378703542,1754965822150,460.0,0.0001875,2]
[378703543,1754965823760,460.0,0.0001875,2]
[378703544,1754965824747,460.0,0.0001875,2]
[378703545,1754965826017,933.68,0.0001875,2]
[378703546,1754965827787,460.0,0.0001875,2]
[378703547,1754965828452,460.0,0.0001875,2]
[378703548,1754965829000,480.85,0.0001875,2]
[378703549,1754965830222,3500.5,0.0001875,2]
[378703572,1754965831836,460.0,0.0001875,2]
[378703597,1754965832063,-151.0,0.00018751,2]
[378703600,1754965832075,-151.0,0.00018751,2]
[378703602,1754965832087,-360.00824738,0.00018751,2]
[378703613,1754965835316,460.0,0.0001875,2]
[378703614,1754965835428,460.0,0.0001875,2]
[378703615,1754965836473,933.67,0.0001875,2]
[378703620,1754965837716,-139.99175262,0.00018751,2]
[378703621,1754965837726,-151.0,0.00018751,2]
[378703622,1754965837736,-151.0,0.00018751,2]
[378703623,1754965837746,-391.8394906,0.00018751,2]
[378703624,1754965837759,-108.1605094,0.00018751,2]
[378703625,1754965837768,-203.35702061,0.00018751,2]
[378703626,1754965837779,-65.8141423,0.00018751,2]
[378703627,1754965837791,-85.1858577,0.00018751,2]
[378703628,1754965837801,-152.72114717,0.00018751,2]
[378703629,1754965837811,-151.0,0.00018751,2]
[378703630,1754965837821,-151.0,0.00018751,2]
[378703631,1754965837831,-151.10379401,0.00018751,2]
[378703632,1754965837841,-151.31811155,0.00018751,2]
[378703633,1754965837850,-151.87749848,0.00018751,2]
[378703634,1754965837861,-1370.0265617,0.00018751,2]
[378703635,1754965837873,-528.08298489,0.00018751,2]
[378703636,1754965837885,-1129.78045341,0.00018751,2]
[378703637,1754965837895,-19.21954731,0.00018751,2]
[378703640,1754965839570,1095.11,0.0001875,2]
[378703649,1754965842584,480.68,0.0001875,2]
[378703678,1754965843008,-196.13478811,0.00018751,2]
[378703680,1754965843017,-500.0,0.00018751,2]
[378703682,1754965843027,-147.02242361,0.00018751,2]
[378703687,1754965844299,2944.85,0.0001875,2]
[378703688,1754965844575,613.43,0.0001875,2]
[378703689,1754965845094,855.18,0.0001875,2]
[378703702,1754965845347,2901.73,0.0001875,2]
[378703737,1754965845759,-52.0259661,0.00018751,2]
[378703739,1754965845770,-460.0,0.00018751,2]
[378703741,1754965845780,-3048.95,0.00018751,2]
[378703743,1754965845789,-460.0,0.00018751,2]
[378703745,1754965845799,-151.0,0.00018751,2]
[378703747,1754965845808,-151.0,0.00018751,2]
[378703749,1754965845817,-151.0,0.00018751,2]
[378703751,1754965845826,-151.0,0.00018751,2]
[378703753,1754965845836,-151.0,0.00018751,2]
[378703755,1754965845845,-500.0,0.00018751,2]
[378703757,1754965845854,-3333.72403391,0.00018751,2]
[378703760,1754965847261,460.0,0.0001875,2]
[378703761,1754965852979,1128.75,0.0001875,2]
[378703762,1754965853899,460.0,0.0001875,2]
[378703763,1754965857280,460.0,0.0001875,2]
[378703764,1754965860010,460.0,0.0001875,2]
[378703765,1754965860618,460.0,0.0001875,2]
[378703766,1754965861671,606.56,0.0001875,2]
[378703767,1754965862955,300.0,0.0001875,2]
[378703768,1754965863386,536.39,0.0001875,2]
[378703769,1754965868432,460.0,0.0001875,2]
[378703770,1754965869517,1472.22,0.0001875,2]
[378703771,1754965875956,2454.65,0.0001875,2]
[378703772,1754965884931,771.28,0.0001875,2]
[378703773,1754965885318,460.0,0.0001875,2]
[378703774,1754965890442,987.97,0.0001875,2]
[378703775,1754965891010,460.0,0.0001875,2]
[378703776,1754965892232,460.0,0.0001875,2]
[378703777,1754965897644,460.82,0.0001875,2]
[378703778,1754965898555,750.68,0.0001875,2]
[378703779,1754965899910,486.22,0.0001875,2]
[378703780,1754965903240,460.0,0.0001875,2]
[378703781,1754965907155,514.04,0.0001875,2]